fUST/lending_fUST_20250808
["ID","MTS","AMOUNT","RATE_DAILY","PERIOD"]
[377898692,1754608232917,-460.0,0.00021917,2]
[377898694,1754608232928,-460.0,0.00021917,2]
[377898696,1754608232938,-460.0,0.00021917,2]
[377898699,1754608232949,-460.0,0.00021917,2]
[377898701,1754608232960,-566.52359849,0.00021917,2]
[377898703,1754608232971,-460.0,0.00021917,2]
[377898705,1754608232981,-312.27406109,0.00021917,2]
[377898707,1754608232993,-333.78118104,0.00021917,2]
[377898709,1754608233004,-461.17921993,0.00021917,2]
[377898711,1754608233014,-460.0,0.00021917,2]
[377898713,1754608233025,-460.0,0.00021917,2]
[377898716,1754608233036,-460.0,0.00021917,2]
[377898718,1754608233046,-460.0,0.00021917,2]
[377898720,1754608233057,-464.92973893,0.00021917,2]
[377898722,1754608233067,-460.0,0.00021917,2]
[377898724,1754608233078,-460.0,0.00021917,2]
[377898726,1754608233089,-460.0,0.00021917,2]
[377898728,1754608233099,-460.0,0.00021917,2]
[377898730,1754608233110,-460.0,0.00021917,2]
[377898732,1754608233124,-467.7913872,0.00021917,2]
[377898735,1754608233135,-460.0,0.00021917,2]
[377898737,1754608233146,-460.0,0.00021917,2]
[377898739,1754608233158,-460.0,0.00021917,2]
[377898741,1754608233169,-460.0,0.00021917,2]
[377898743,1754608233180,-460.0,0.00021917,2]
[377898745,1754608233190,-395.13834564,0.00021917,2]
[377898748,1754608233202,-460.0,0.00021917,2]
[377898750,1754608233217,-460.0,0.00021917,2]
[377898752,1754608233227,-460.0,0.00021917,2]
[377898754,1754608233238,-460.0,0.00021917,2]
[377898756,1754608233248,-460.0,0.00021917,2]
[377898758,1754608233259,-460.0,0.00021917,2]
[377898760,1754608233269,-460.0,0.00021917,2]
[377898762,1754608233280,-460.0,0.00021917,2]
[377898765,1754608233291,-460.62381113,0.00021917,2]
[377898767,1754608233303,-460.0,0.00021917,2]
[377898769,1754608233313,-460.0,0.00021917,2]
[377898771,1754608233324,-460.0,0.00021917,2]
[377898773,1754608233334,-460.0,0.00021917,2]
[377898775,1754608233345,-460.0,0.00021917,2]
[377898777,1754608233356,-460.0,0.00021917,2]
[377898780,1754608233368,-460.0,0.00021917,2]
[377898782,1754608233379,-460.0,0.00021917,2]
[377898784,1754608233390,-460.0,0.00021917,2]
[377898786,1754608233401,-460.0,0.00021917,2]
[377898788,1754608233411,-477.02278304,0.00021917,2]
[377898790,1754608233422,-460.0,0.00021917,2]
[377898792,1754608233433,-460.0,0.00021917,2]
[377898795,1754608233443,-229.22483265,0.00021917,2]
[377898797,1754608233454,-265.75958267,0.00021917,2]
[377898799,1754608233464,-460.0,0.00021917,2]
[377898801,1754608233475,-460.0,0.00021917,2]
[377898803,1754608233486,-460.0,0.00021917,2]
[377898805,1754608233497,-460.0,0.00021917,2]
[377898807,1754608233507,-461.69525378,0.00021917,2]
[377898809,1754608233518,-460.0,0.00021917,2]
[377898812,1754608233530,-460.0,0.00021917,2]
[377898814,1754608233540,-460.0,0.00021917,2]
[377898816,1754608233549,-460.0,0.00021917,2]
[377898818,1754608233559,-460.0,0.00021917,2]
[377898820,1754608233568,-460.0,0.00021917,2]
[377898822,1754608233578,-460.0,0.00021917,2]
[377898824,1754608233587,-460.0,0.00021917,2]
[377898826,1754608233596,-460.0,0.00021917,2]
[377898828,1754608233606,-460.0,0.00021917,2]
[377898830,1754608233617,-159.60700369,0.00021917,2]
[377899324,1754608238767,-300.39299631,0.00021917,2]
[377899325,1754608238777,-460.0,0.00021917,2]
[377899328,1754608238787,-23.42096509,0.00021917,2]
[377899330,1754608238799,-436.57903491,0.00021917,2]
[377899332,1754608238808,-460.0,0.00021917,2]
[377899334,1754608238818,-146.58968978,0.00021917,2]
[377899336,1754608238829,-313.41031022,0.00021917,2]
[377899338,1754608238839,-417.56968898,0.00021917,2]
[377899340,1754608238851,-42.43031102,0.00021917,2]
[377899342,1754608238861,-460.0,0.00021917,2]
[377899344,1754608238871,-460.0,0.00021917,2]
[377899346,1754608238881,-120.44867293,0.00021917,2]
[377899359,1754608239000,-347.41841346,0.00021917,2]
[377899361,1754608239017,-500.0,0.00021917,2]
[377899363,1754608239027,-500.0,0.00021917,2]
[377899365,1754608239036,-252.58158654,0.00021917,2]
[377899367,1754608239048,-247.41841346,0.00021917,2]
[377899370,1754608239058,-500.0,0.00021917,2]
[377899372,1754608239067,-1545.01,0.00021917,2]
[377899373,1754608239077,-500.0,0.00021917,2]
[377899375,1754608239087,-602.6,0.00021917,2]
[377899377,1754608239097,-460.0,0.00021917,2]
[377899379,1754608239106,-460.0,0.00021917,2]
[377899382,1754608239115,-460.0,0.00021917,2]
[377899385,1754608239124,-460.0,0.00021917,2]
[377899388,1754608239134,-460.0,0.00021917,2]
[377899391,1754608239143,-460.0,0.00021917,2]
[377899394,1754608239153,-460.0,0.00021917,2]
[377899398,1754608239163,-496.73,0.00021917,2]
[377899402,1754608239173,-460.0,0.00021917,2]
[377899405,1754608239182,-460.0,0.00021917,2]
[377899408,1754608239192,-460.0,0.00021917,2]
[377899411,1754608239201,-460.0,0.00021917,2]
[377899413,1754608239213,-460.0,0.00021917,2]
[377899416,1754608239222,-696.5,0.00021917,2]
[377899418,1754608239232,-761.95,0.00021917,2]
[377899419,1754608239242,-460.0,0.00021917,2]
[377899421,1754608239254,-460.0,0.00021917,2]
[377899424,1754608239264,-460.0,0.00021917,2]
[377899425,1754608239273,-463.22136227,0.00021917,2]
[377899427,1754608239285,-460.0,0.00021917,2]
[377899429,1754608239294,-460.0,0.00021917,2]
[377899431,1754608239303,-521.74,0.00021917,2]
[377899433,1754608239313,-460.0,0.00021917,2]
[377899435,1754608239323,-635.36,0.00021917,2]
[377899438,1754608239332,-527.27561656,0.00021917,2]
[377899439,1754608239342,-836.57,0.00021917,2]
[377899441,1754608239351,-460.0,0.00021917,2]
[377899444,1754608239360,-460.0,0.00021917,2]
[377899445,1754608239370,-460.0,0.00021917,2]
[377899447,1754608239380,-460.0,0.00021917,2]
[377899449,1754608239389,-460.0,0.00021917,2]
[377899451,1754608239398,-460.0,0.00021917,2]
[377899453,1754608239408,-460.0,0.00021917,2]
[377899455,1754608239417,-460.0,0.00021917,2]
[377899457,1754608239427,-542.44269811,0.00021917,2]
[377899459,1754608239436,-460.0,0.00021917,2]
[377899461,1754608239446,-460.0,0.00021917,2]
[377899463,1754608239455,-460.0,0.00021917,2]
[377899465,1754608239465,-460.0,0.00021917,2]
[377899467,1754608239474,-460.0,0.00021917,2]
[377899469,1754608239483,-460.0,0.00021917,2]
[377899471,1754608239493,-460.0,0.00021917,2]
[377899473,1754608239502,-460.0,0.00021917,2]
[377899475,1754608239511,-460.0,0.00021917,2]
[377899477,1754608239522,-913.2,0.00021917,2]
[377899480,1754608239532,-189.30661163,0.00021917,2]
[377899481,1754608239542,-460.0,0.00021917,2]
[377899483,1754608239551,-460.0,0.00021917,2]
[377899485,1754608239562,-460.0,0.00021917,2]
[377899487,1754608239571,-460.0,0.00021917,2]
[377899489,1754608239581,-460.0,0.00021917,2]
[377899491,1754608239590,-460.0,0.00021917,2]
[377899493,1754608239599,-460.0,0.00021917,2]
[377899495,1754608239609,-460.0,0.00021917,2]
[377899497,1754608239619,-888.58,0.00021917,2]
[377899499,1754608239629,-460.0,0.00021917,2]
[377899501,1754608239638,-460.0,0.00021917,2]
[377899503,1754608239647,-469.67159052,0.00021917,2]
[377899505,1754608239657,-460.0,0.00021917,2]
[377899507,1754608239666,-460.0,0.00021917,2]
[377899509,1754608239676,-460.0,0.00021917,2]
[377899511,1754608239686,-460.0,0.00021917,2]
[377899513,1754608239695,-460.0,0.00021917,2]
[377899515,1754608239705,-460.0,0.00021917,2]
[377899517,1754608239715,-460.0,0.00021917,2]
[377899519,1754608239731,-460.0,0.00021917,2]
[377899521,1754608239740,-460.0,0.00021917,2]
[377899523,1754608239749,-460.0,0.00021917,2]
[377899525,1754608239760,-460.0,0.00021917,2]
[377899527,1754608239769,-460.0,0.00021917,2]
[377899529,1754608239778,-460.0,0.00021917,2]
[377899531,1754608239788,-460.0,0.00021917,2]
[377899533,1754608239797,-489.79,0.00021917,2]
[377899535,1754608239806,-460.0,0.00021917,2]
[377899537,1754608239815,-460.0,0.00021917,2]
[377899539,1754608239825,-460.0,0.00021917,2]
[377899541,1754608239834,-14.30874767,0.00021917,2]
[377899543,1754608239847,-445.69125233,0.00021917,2]
[377899545,1754608239856,-469.60157615,0.00021917,2]
[377899547,1754608239867,-460.0,0.00021917,2]
[377899549,1754608239876,-460.0,0.00021917,2]
[377899551,1754608239886,-460.0,0.00021917,2]
[377899553,1754608239895,-460.0,0.00021917,2]
[377899555,1754608239904,-180.4192899,0.00021917,2]
[377899557,1754608239913,-460.0,0.00021917,2]
[377899559,1754608239924,-460.0,0.00021917,2]
[377899561,1754608239933,-460.0,0.00021917,2]
[377899563,1754608239942,-460.0,0.00021917,2]
[377899565,1754608239951,-460.0,0.00021917,2]
[377899567,1754608239960,-468.78271485,0.00021917,2]
[377899569,1754608239969,-460.0,0.00021917,2]
[377899571,1754608239979,-494.73110871,0.00021917,2]
[377899573,1754608239988,-460.0,0.00021917,2]
[377899575,1754608239998,-2254.66,0.00021917,2]
[377899577,1754608240007,-999.9,0.00021917,2]
[377899578,1754608240016,-557.67,0.00021917,2]
[377899580,1754608240026,-555.23,0.00021917,2]
[377899583,1754608240036,-460.0,0.00021917,2]
[377899585,1754608240045,-460.0,0.00021917,2]
[377899587,1754608240054,-460.0,0.00021917,2]
[377899588,1754608240063,-460.0,0.00021917,2]
[377899591,1754608240072,-460.0,0.00021917,2]
[377899594,1754608240082,-460.0,0.00021917,2]
[377899597,1754608240091,-551.24337789,0.00021917,2]
[377899599,1754608240100,-460.0,0.00021917,2]
[377899601,1754608240110,-327.68378311,0.00021917,2]
[377899603,1754608240120,-460.0,0.00021917,2]
[377899604,1754608240130,-460.0,0.00021917,2]
[377899606,1754608240140,-460.0,0.00021917,2]
[377899607,1754608240150,-460.0,0.00021917,2]
[377899608,1754608240160,-1178.81,0.00021917,2]
[377899609,1754608240171,-460.0,0.00021917,2]
[377899610,1754608240181,-638.48,0.00021917,2]
[377899611,1754608240193,-326.97086935,0.00021917,2]
[377899612,1754608240205,-460.0,0.00021917,2]
[377899613,1754608240218,-460.0,0.00021917,2]
[377899615,1754608240228,-460.0,0.00021917,2]
[377899617,1754608240237,-460.0,0.00021917,2]
[377899618,1754608240247,-460.0,0.00021917,2]
[377899619,1754608240256,-465.17304523,0.00021917,2]
[377899620,1754608240266,-460.0,0.00021917,2]
[377899621,1754608240276,-594.65,0.00021917,2]
[377899622,1754608240286,-460.0,0.00021917,2]
[377899623,1754608240296,-460.0,0.00021917,2]
[377899624,1754608240306,-460.0,0.00021917,2]
[377899626,1754608240317,-460.0,0.00021917,2]
[377899628,1754608240327,-533.04,0.00021917,2]
[377899630,1754608240338,-914.34,0.00021917,2]
[377899632,1754608240348,-667.71,0.00021917,2]
[377899633,1754608240359,-460.0,0.00021917,2]
[377899634,1754608240370,-241.84,0.00022,2]
[377899635,1754608240381,-448.16959937,0.00022189,2]
[377899636,1754608240391,-500.0,0.00022189,2]
[377899637,1754608240400,-500.0,0.00022189,2]
[377899638,1754608240411,-500.0,0.00022189,2]
[377899639,1754608240420,-500.0,0.00022189,2]
[377899641,1754608240430,-500.0,0.00022189,2]
[377899643,1754608240439,-500.0,0.00022189,2]
[377899645,1754608240448,-500.0,0.00022189,2]
[377899647,1754608240457,-500.0,0.00022189,2]
[377899649,1754608240467,-500.0,0.00022189,2]
[377899651,1754608240476,-460.0,0.00022191,2]
[377899653,1754608240485,-460.0,0.00022191,2]
[377899655,1754608240494,-460.0,0.00022191,2]
[377899656,1754608240503,-460.0,0.00022191,2]
[377899658,1754608240513,-460.0,0.00022191,2]
[377899660,1754608240522,-460.0,0.00022191,2]
[377899661,1754608240532,-460.0,0.00022191,2]
[377899663,1754608240541,-460.0,0.00022191,2]
[377899665,1754608240550,-460.0,0.00022191,2]
[377899667,1754608240560,-250.67559645,0.00022191,2]
[377899669,1754608240569,-460.0,0.00022191,2]
[377899671,1754608240578,-460.0,0.00022191,2]
[377899673,1754608240588,-460.0,0.00022191,2]
[377899675,1754608240597,-460.0,0.00022191,2]
[377899677,1754608240606,-460.0,0.00022191,2]
[377899679,1754608240616,-460.0,0.00022191,2]
[377899681,1754608240626,-1545.01,0.00022191,2]
[377899683,1754608240635,-460.0,0.00022191,2]
[377899685,1754608240644,-460.0,0.00022191,2]
[377899687,1754608240654,-460.0,0.00022191,2]
[377899689,1754608240664,-461.54291406,0.00022191,2]
[377899691,1754608240680,-460.0,0.00022191,2]
[377899693,1754608240690,-460.0,0.00022191,2]
[377899695,1754608240699,-696.5,0.00022191,2]
[377899696,1754608240708,-761.95,0.00022191,2]
[377899697,1754608240718,-460.0,0.00022191,2]
[377899699,1754608240727,-521.74,0.00022191,2]
[377899701,1754608240736,-635.36,0.00022191,2]
[377899703,1754608240745,-836.57,0.00022191,2]
[377899705,1754608240755,-460.0,0.00022191,2]
[377899707,1754608240764,-593.43,0.00022191,2]
[377899709,1754608240774,-460.0,0.00022191,2]
[377899711,1754608240783,-460.0,0.00022191,2]
[377899713,1754608240792,-460.0,0.00022191,2]
[377899714,1754608240802,-460.0,0.00022191,2]
[377899716,1754608240811,-309.36740716,0.00022191,2]
[377899718,1754608240820,-913.2,0.00022191,2]
[377899720,1754608240830,-460.0,0.00022191,2]
[377899722,1754608240839,-460.0,0.00022191,2]
[377899724,1754608240848,-888.58,0.00022191,2]
[377899726,1754608240858,-541.96,0.00022191,2]
[377899728,1754608240867,-460.0,0.00022191,2]
[377899730,1754608240877,-460.0,0.00022191,2]
[377899732,1754608240887,-460.0,0.00022191,2]
[377899734,1754608240896,-460.0,0.00022191,2]
[377899736,1754608240905,-460.0,0.00022191,2]
[377899738,1754608240915,-460.0,0.00022191,2]
[377899740,1754608240925,-460.0,0.00022191,2]
[377899742,1754608240935,-460.0,0.00022191,2]
[377899744,1754608240944,-489.79,0.00022191,2]
[377899746,1754608240954,-460.0,0.00022191,2]
[377899748,1754608240963,-397.98280604,0.00022191,2]
[377899750,1754608240972,-460.0,0.00022191,2]
[377899752,1754608240982,-460.0,0.00022191,2]
[377899754,1754608240991,-460.0,0.00022191,2]
[377899756,1754608241001,-460.0,0.00022191,2]
[377899758,1754608241010,-2254.66,0.00022191,2]
[377899760,1754608241019,-999.9,0.00022191,2]
[377899762,1754608241030,-557.67,0.00022191,2]
[377899764,1754608241039,-555.23,0.00022191,2]
[377899766,1754608241049,-604.3,0.00022191,2]
[377899768,1754608241058,-460.0,0.00022191,2]
[377899770,1754608241067,-460.0,0.00022191,2]
[377899772,1754608241076,-460.0,0.00022191,2]
[377899773,1754608241086,-460.0,0.00022191,2]
[377899775,1754608241095,-1178.81,0.00022191,2]
[377899777,1754608241104,-460.0,0.00022191,2]
[377899779,1754608241113,-638.48,0.00022191,2]
[377899781,1754608241123,-460.0,0.00022191,2]
[377899783,1754608241133,-460.0,0.00022191,2]
[377899785,1754608241143,-460.0,0.00022191,2]
[377899787,1754608241152,-594.65,0.00022191,2]
[377899789,1754608241162,-460.0,0.00022191,2]
[377899791,1754608241171,-460.0,0.00022191,2]
[377899793,1754608241180,-479.16,0.00022191,2]
[377899795,1754608241189,-533.04,0.00022191,2]
[377899797,1754608241199,-914.34,0.00022191,2]
[377899799,1754608241210,-667.71,0.00022191,2]
[377899801,1754608241220,-569.03124989,0.00022305,2]
[377899803,1754608241229,-502.28552133,0.00022394,2]
[377899808,1754608241238,-460.0,0.00022465,2]
[377899809,1754608241374,-460.0,0.00022465,2]
[377899810,1754608241384,-460.0,0.00022465,2]
[377899811,1754608241393,-460.0,0.00022465,2]
[377899812,1754608241402,-460.0,0.00022465,2]
[377899814,1754608241411,-460.0,0.00022465,2]
[377899816,1754608241420,-460.0,0.00022465,2]
[377899818,1754608241429,-460.0,0.00022465,2]
[377899820,1754608241439,-466.12,0.00022465,2]
[377899822,1754608241449,-460.0,0.00022465,2]
[377899824,1754608241458,-460.0,0.00022465,2]
[377899826,1754608241468,-367.74172098,0.00022465,2]
[377899828,1754608241477,-460.0,0.00022465,2]
[377899830,1754608241488,-1545.01,0.00022465,2]
[377899832,1754608241497,-460.0,0.00022465,2]
[377899834,1754608241506,-421.65353124,0.00022465,2]
[377899836,1754608241516,-460.0,0.00022465,2]
[377899838,1754608241525,-460.0,0.00022465,2]
[377899840,1754608241534,-696.5,0.00022465,2]
[377899843,1754608241544,-761.95,0.00022465,2]
[377899845,1754608241554,-521.74,0.00022465,2]
[377899847,1754608241563,-635.36,0.00022465,2]
[377899849,1754608241572,-836.57,0.00022465,2]
[377899851,1754608241581,-460.0,0.00022465,2]
[377899853,1754608241591,-520.8,0.00022465,2]
[377899855,1754608241600,-460.0,0.00022465,2]
[377899856,1754608241609,-460.0,0.00022465,2]
[377899858,1754608241619,-460.0,0.00022465,2]
[377899861,1754608241629,-913.2,0.00022465,2]
[377899863,1754608241638,-460.0,0.00022465,2]
[377899864,1754608241647,-888.58,0.00022465,2]
[377899866,1754608241657,-460.0,0.00022465,2]
[377899868,1754608241666,-365.85818973,0.00022465,2]
[377899870,1754608241676,-460.0,0.00022465,2]
[377899873,1754608241686,-460.0,0.00022465,2]
[377899874,1754608241695,-460.0,0.00022465,2]
[377899877,1754608241705,-460.0,0.00022465,2]
[377899878,1754608241715,-489.79,0.00022465,2]
[377899881,1754608241724,-460.0,0.00022465,2]
[377899882,1754608241733,-460.0,0.00022465,2]
[377899884,1754608241742,-2254.66,0.00022465,2]
[377899886,1754608241751,-999.9,0.00022465,2]
[377899888,1754608241760,-557.67,0.00022465,2]
[377899890,1754608241770,-555.23,0.00022465,2]
[377899892,1754608241780,-460.0,0.00022465,2]
[377899894,1754608241789,-227.05,0.00022465,2]
[377899897,1754608241799,-1178.81,0.00022465,2]
[377899899,1754608241809,-638.48,0.00022465,2]
[377899901,1754608241818,-460.0,0.00022465,2]
[377899903,1754608241828,-460.0,0.00022465,2]
[377899905,1754608241837,-594.65,0.00022465,2]
[377899907,1754608241847,-460.0,0.00022465,2]
[377899909,1754608241856,-460.0,0.00022465,2]
[377899911,1754608241866,-533.04,0.00022465,2]
[377899913,1754608241876,-914.34,0.00022465,2]
[377899914,1754608241885,-667.71,0.00022465,2]
[377899917,1754608241895,-500.0,0.00022535,2]
[377899919,1754608241904,-842.63596909,0.00022621,2]
[377899920,1754608241914,-312.16666667,0.00022621,2]
[377899922,1754608241926,-160.0,0.00022621,2]
[377899924,1754608241935,-160.0,0.00022624,2]
[377899926,1754608241946,-160.0,0.00022624,2]
[377899929,1754608241957,-215.31718835,0.00022624,2]
[377899930,1754608241967,-12660.90439413,0.00022624,2]
[377899932,1754608241977,-160.0,0.00022624,2]
[377899934,1754608241988,-527.57568145,0.00022624,2]
[377899937,1754608241997,-160.0,0.00022624,2]
[377899939,1754608242007,-461.3695942,0.00022624,2]
[377899941,1754608242017,-216.52217562,0.00022624,2]
[377899943,1754608242026,-231.83071243,0.00022624,2]
[377899945,1754608242035,-160.0,0.00022624,2]
[377899947,1754608242044,-160.0,0.00022625,2]
[377899949,1754608242054,-461.3695942,0.00022639,3]
[377899951,1754608242063,-460.0,0.00022739,2]
[377899953,1754608242073,-472.13,0.00022739,2]
[377899955,1754608242083,-460.0,0.00022739,2]
[377899957,1754608242092,-460.0,0.00022739,2]
[377899959,1754608242102,-460.0,0.00022739,2]
[377899961,1754608242113,-153.7,0.00022739,2]
[377899963,1754608242123,-460.0,0.00022739,2]
[377899965,1754608242133,-460.0,0.00022739,2]
[377899968,1754608242142,-460.0,0.00022739,2]
[377899970,1754608242152,-460.0,0.00022739,2]
[377899971,1754608242163,-1545.01,0.00022739,2]
[377899973,1754608242172,-460.0,0.00022739,2]
[377899976,1754608242182,-582.0,0.00022739,2]
[377899978,1754608242191,-460.0,0.00022739,2]
[377899980,1754608242201,-696.5,0.00022739,2]
[377899982,1754608242215,-761.95,0.00022739,2]
[377899984,1754608242225,-521.74,0.00022739,2]
[377899986,1754608242234,-635.36,0.00022739,2]
[377899988,1754608242244,-836.57,0.00022739,2]
[377899990,1754608242254,-460.0,0.00022739,2]
[377899992,1754608242263,-460.0,0.00022739,2]
[377899994,1754608242273,-460.0,0.00022739,2]
[377899996,1754608242283,-460.0,0.00022739,2]
[377899998,1754608242294,-913.2,0.00022739,2]
[377900000,1754608242303,-460.0,0.00022739,2]
[377900002,1754608242312,-888.58,0.00022739,2]
[377900004,1754608242322,-460.0,0.00022739,2]
[377900006,1754608242331,-157.56,0.00022739,2]
[377900008,1754608242340,-460.0,0.00022739,2]
[377900010,1754608242350,-460.0,0.00022739,2]
[377900012,1754608242359,-531.4,0.00022739,2]
[377900014,1754608242369,-489.79,0.00022739,2]
[377900016,1754608242379,-460.0,0.00022739,2]
[377900018,1754608242389,-460.0,0.00022739,2]
[377900020,1754608242398,-2254.66,0.00022739,2]
[377900022,1754608242407,-999.9,0.00022739,2]
[377900024,1754608242418,-557.67,0.00022739,2]
[377900026,1754608242427,-555.23,0.00022739,2]
[377900028,1754608242436,-460.0,0.00022739,2]
[377900030,1754608242448,-638.48,0.00022739,2]
[377900032,1754608242457,-1178.81,0.00022739,2]
[377900034,1754608242468,-460.0,0.00022739,2]
[377900036,1754608242477,-460.0,0.00022739,2]
[377900038,1754608242487,-594.65,0.00022739,2]
[377900040,1754608242497,-460.0,0.00022739,2]
[377900042,1754608242507,-533.04,0.00022739,2]
[377900044,1754608242517,-914.34,0.00022739,2]
[377900046,1754608242526,-667.71,0.00022739,2]
[377900048,1754608242536,-911.90458805,0.00022913,3]
[377900050,1754608242545,-160.0,0.00023,3]
[377900052,1754608242555,-160.0,0.00023,3]
[377900054,1754608242564,-160.0,0.00023,3]
[377900056,1754608242573,-842.63596909,0.00023,3]
[377900058,1754608242583,-160.0,0.00023,2]
[377900060,1754608242592,-200.0,0.0002301,15]
[377900062,1754608242602,-300.0,0.0002301,15]
[377900064,1754608242611,-460.0,0.00023013,2]
[377900066,1754608242621,-527.07,0.00023013,2]
[377900068,1754608242631,-460.0,0.00023013,2]
[377900070,1754608242640,-460.0,0.00023013,2]
[377900072,1754608242650,-460.0,0.00023013,2]
[377900074,1754608242659,-460.0,0.00023013,2]
[377900076,1754608242668,-460.0,0.00023013,2]
[377900078,1754608242678,-460.0,0.00023013,2]
[377900081,1754608242688,-1545.01,0.00023013,2]
[377900083,1754608242698,-460.0,0.00023013,2]
[377900085,1754608242707,-325.13109459,0.00023013,2]
[377900087,1754608242716,-696.5,0.00023013,2]
[377900088,1754608242725,-761.95,0.00023013,2]
[377900090,1754608242735,-521.74,0.00023013,2]
[377900093,1754608242745,-836.57,0.00023013,2]
[377900094,1754608242754,-635.36,0.00023013,2]
[377900096,1754608242763,-460.0,0.00023013,2]
[377900099,1754608242773,-460.0,0.00023013,2]
[377900101,1754608242782,-460.0,0.00023013,2]
[377900102,1754608242792,-460.0,0.00023013,2]
[377900105,1754608242803,-913.2,0.00023013,2]
[377900107,1754608242813,-344.58105114,0.00023013,2]
[377900109,1754608242822,-888.58,0.00023013,2]
[377900110,1754608242832,-255.66,0.00023013,2]
[377900113,1754608242841,-460.0,0.00023013,2]
[377900115,1754608242851,-460.0,0.00023013,2]
[377900117,1754608242860,-489.79,0.00023013,2]
[377900119,1754608242870,-460.0,0.00023013,2]
[377900120,1754608242879,-460.0,0.00023013,2]
[377900122,1754608242888,-2254.66,0.00023013,2]
[377900125,1754608242898,-999.9,0.00023013,2]
[377900127,1754608242908,-557.67,0.00023013,2]
[377900129,1754608242917,-555.23,0.00023013,2]
[377900131,1754608242927,-460.0,0.00023013,2]
[377900133,1754608242936,-638.48,0.00023013,2]
[377900135,1754608242946,-1178.81,0.00023013,2]
[377900137,1754608242954,-460.0,0.00023013,2]
[377900139,1754608242963,-460.0,0.00023013,2]
[377900141,1754608242972,-594.65,0.00023013,2]
[377900143,1754608242981,-460.0,0.00023013,2]
[377900145,1754608242989,-533.04,0.00023013,2]
[377900147,1754608242999,-401.09,0.00023019,2]
[377900149,1754608243008,-5888.0,0.00023046,2]
[377900151,1754608243017,-1000.0,0.00023083,2]
[377900153,1754608243026,-151.0,0.00023141,7]
[377900155,1754608243035,-151.0,0.00023141,7]
[377900157,1754608243045,-151.0,0.00023141,7]
[377900159,1754608243054,-151.0,0.00023141,7]
[377900161,1754608243063,-151.0,0.00023141,7]
[377900163,1754608243072,-241.84,0.00023241,2]
[377900165,1754608243081,-460.0,0.00023287,2]
[377900167,1754608243090,-569.98,0.00023287,2]
[377900169,1754608243100,-460.0,0.00023287,2]
[377900171,1754608243109,-460.0,0.00023287,2]
[377900173,1754608243119,-460.0,0.00023287,2]
[377900176,1754608243128,-460.0,0.00023287,2]
[377900179,1754608243137,-151.0,0.00023287,7]
[377900182,1754608243146,-460.0,0.00023287,2]
[377900185,1754608243155,-1545.01,0.00023287,2]
[377900187,1754608243164,-452.15285443,0.00023287,2]
[377900189,1754608243173,-151.0,0.00023287,7]
[377900192,1754608243182,-151.0,0.00023287,7]
[377900194,1754608243192,-151.0,0.00023287,7]